{"text_format":"3","workbook":"xlsx","n_sheets":2,"sheets":["Начало","Годовой табель"],"not_rendered":{"defined_names":2},"read":"whole","date_system":"1900"}

{"sheet":"Начало","index":0,"n_rows":8,"n_cols":2,"rows_kept":8}
[null,"Об этом шаблоне"]
[null,"Отслеживайте свои рабочие часы за день, за неделю, за месяц и за год с помощью этого табеля сотрудника."]
[null,"Введите основные сведения, например имя сотрудника, имя руководителя, адрес электронной почты и номер телефона. "]
[null,"Введите часы в таблице каждого месяца. Укажите обычные и сверхурочные часы в отдельных столбцах для каждого дня каждой недели. "]
[null,"Сумма рабочих, обычных и сверхурочных часов вычисляется автоматически. "]
[null,"Примечания.  "]
[null,"В столбце A листа ГОДОВОЙ ТАБЕЛЬ РАБОЧЕГО ВРЕМЕНИ содержатся дополнительные инструкции. Этот текст намеренно скрыт. Чтобы удалить этот текст, выделите столбец A и нажмите клавишу DELETE. Чтобы отобразить текст, выделите столбец A и измените цвет шрифта. "]
[null,"Чтобы получить дополнительные сведения о таблице, щелкните в ней ячейку, затем нажмите клавиши SHIFT+F10, выберите \"Таблица\", а затем — \"Замещающий текст\"."]

{"sheet":"Годовой табель","index":1,"n_rows":138,"n_cols":15,"rows_kept":138,"merged":[[1,1,22,1],[1,5,1,6],[2,5,2,6],[3,5,3,6]]}
[]
[null,"ТАБЕЛЬ СОТРУДНИКА",null,null,"Имя сотрудника:","Михаил Никифоров",null,"Обычные часы:",null,"Сверхурочные часы:",null,"Итого",null,"Руководитель:"]
[{"$nulls":4},"Эл. почта:","mikhail@example.com",null,{"$f":"НормативныеЧасы","v":400},null,{"$f":"Сверхурочные_часы","v":2},null,{"$f":"НормативныеЧасы+Сверхурочные_часы","v":402},null,"Степан Розов"]
[{"$nulls":4},"Телефон:","(212) 555-0123"]
[]
[]
[" ",{"$nulls":3},"Январь, февраль, март   |   Табель сотрудника: ежедневный, еженедельный, ежемесячный, ежегодный"]
[" ",{"$nulls":3},"Январь","Неделя 1","Сверхурочные","Неделя 2","Сверхурочные  ","Неделя 3","Сверхурочные   ","Неделя 4","Сверхурочные    ","Неделя 5","Сверхурочные     "]
[" ",{"$nulls":3},"Понедельник",{"v":8,"d":"8.0"},null,{"v":8,"d":"8.0"},null,{"v":8,"d":"8.0"},null,{"v":8,"d":"8.0"},null,{"v":8,"d":"8.0"}]
[" ",{"$nulls":3},"Вторник",{"v":8,"d":"8.0"},{"v":2,"d":"2.0"},{"v":8,"d":"8.0"},null,{"v":8,"d":"8.0"},null,{"v":8,"d":"8.0"},null,{"v":8,"d":"8.0"}]
[" ",{"$nulls":3},"Среда",{"v":8,"d":"8.0"},null,{"v":8,"d":"8.0"},null,{"v":8,"d":"8.0"},null,{"v":8,"d":"8.0"},null,{"v":8,"d":"8.0"}]
[{"$nulls":4},"Четверг",{"v":8,"d":"8.0"},null,{"v":8,"d":"8.0"},null,{"v":8,"d":"8.0"},null,{"v":8,"d":"8.0"},null,{"v":8,"d":"8.0"}]
[{"$nulls":4},"Пятница",{"v":8,"d":"8.0"},null,{"v":8,"d":"8.0"},null,{"v":8,"d":"8.0"},null,{"v":8,"d":"8.0"},null,{"v":8,"d":"8.0"}]
[{"$nulls":4},"Суббота"]
[" ",{"$nulls":3},"Воскресенье"]
[" ",{"$nulls":3},"Итого часов за неделю",{"$f":"SUM(F9:F15)","v":{"v":40,"d":"40.0"}},{"v":2,"d":"2.0"},{"v":40,"d":"40.0"},{"v":0,"d":"0.0"},{"v":40,"d":"40.0"},{"v":0,"d":"0.0"},{"v":40,"d":"40.0"},{"v":0,"d":"0.0"},{"v":40,"d":"40.0"},{"v":0,"d":"0.0"}]
[" ",{"$nulls":3},{"$f":"TEXT(DATEVALUE(Январь[[#Headers],[Январь]]&\"  \"&YEAR(TODAY())),\"МММ.\")&\" Итого: нормативные часы\"","v":"янв. Итого: нормативные часы"},{"$f":"SUM(Январь[Неделя 1],Январь[Неделя 2],Январь[Неделя 3],Январь[Неделя 4],Январь[Неделя 5])","v":{"v":200,"d":"200.0"}},{"$nulls":5},{"$f":"TEXT(DATEVALUE(Январь[[#Headers],[Январь]]&\"  \"&YEAR(TODAY())),\"МММ.\")&\" Итого: сверхурочные часы\"","v":"янв. Итого: сверхурочные часы"},null,{"$f":"SUM(Январь[Сверхурочные],Январь[[Сверхурочные  ]],Январь[[Сверхурочные   ]],Январь[[Сверхурочные    ]],Январь[[Сверхурочные     ]])","v":{"v":2,"d":"2.0"}}]
[]
[" ",{"$nulls":3},"Февраль","Неделя 1","Сверхурочные","Неделя 2","Сверхурочные  ","Неделя 3","Сверхурочные   ","Неделя 4","Сверхурочные    ","Неделя 5","Сверхурочные     "]
[{"$nulls":4},"Понедельник",{"v":8,"d":"8.0"},null,{"v":8,"d":"8.0"},null,{"v":8,"d":"8.0"},null,{"v":8,"d":"8.0"},null,{"v":8,"d":"8.0"}]
[{"$nulls":4},"Вторник",{"v":8,"d":"8.0"},{"v":2,"d":"2.0"},{"v":8,"d":"8.0"},null,{"v":8,"d":"8.0"},null,{"v":8,"d":"8.0"},null,{"v":8,"d":"8.0"}]
[{"$nulls":4},"Среда",{"v":8,"d":"8.0"},null,{"v":8,"d":"8.0"},null,{"v":8,"d":"8.0"},null,{"v":8,"d":"8.0"},null,{"v":8,"d":"8.0"}]
[{"$nulls":4},"Четверг",{"v":8,"d":"8.0"},null,{"v":8,"d":"8.0"},null,{"v":8,"d":"8.0"},3.5,{"v":8,"d":"8.0"},null,{"v":8,"d":"8.0"}]
[{"$nulls":4},"Пятница",{"v":8,"d":"8.0"},null,{"v":8,"d":"8.0"},null,{"v":8,"d":"8.0"},null,{"v":8,"d":"8.0"},null,{"v":8,"d":"8.0"}]
[{"$nulls":4},"Суббота"]
[{"$nulls":4},"Воскресенье"]
[{"$nulls":4},"Итого часов за неделю",{"$f":"SUM(F20:F26)","v":{"v":40,"d":"40.0"}},{"v":2,"d":"2.0"},{"v":40,"d":"40.0"},{"v":0,"d":"0.0"},{"v":40,"d":"40.0"},3.5,{"v":40,"d":"40.0"},{"v":0,"d":"0.0"},{"v":40,"d":"40.0"},{"v":0,"d":"0.0"}]
[" ",{"$nulls":3},{"$f":"TEXT(DATEVALUE(Февраль[[#Headers],[Февраль]]&\"  \"&YEAR(TODAY())),\"МММ.\")&\" Итого: нормативные часы\"","v":"фев. Итого: нормативные часы"},{"$f":"SUM(Февраль[Неделя 1],Февраль[Неделя 2],Февраль[Неделя 3],Февраль[Неделя 4],Февраль[Неделя 5])","v":{"v":200,"d":"200.0"}},{"$nulls":5},{"$f":"TEXT(DATEVALUE(Февраль[[#Headers],[Февраль]]&\" \"&YEAR(TODAY())),\"МММ.\")&\" Итого: сверхурочные часы\"","v":"фев. Итого: сверхурочные часы"},null,{"$f":"SUM(Февраль[Сверхурочные],Февраль[[Сверхурочные  ]],Февраль[[Сверхурочные   ]],Февраль[[Сверхурочные    ]],Февраль[[Сверхурочные     ]])","v":5.5}]
[]
[" ",{"$nulls":3},"Март","Неделя 1","Сверхурочные","Неделя 2","Сверхурочные  ","Неделя 3","Сверхурочные ","Неделя 4","Сверхурочные    ","Неделя 5","Сверхурочные     "]
[{"$nulls":4},"Понедельник"]
[{"$nulls":4},"Вторник"]
[{"$nulls":4},"Среда"]
[{"$nulls":4},"Четверг"]
[{"$nulls":4},"Пятница"]
[{"$nulls":4},"Суббота"]
[{"$nulls":4},"Воскресенье"]
[{"$nulls":4},"Итого часов за неделю",{"$f":"SUM(F31:F37)","v":{"v":0,"d":"0.0"}},{"v":0,"d":"0.0"},{"v":0,"d":"0.0"},{"v":0,"d":"0.0"},{"v":0,"d":"0.0"},{"v":0,"d":"0.0"},{"v":0,"d":"0.0"},{"v":0,"d":"0.0"},{"v":0,"d":"0.0"},{"v":0,"d":"0.0"}]
[" ",{"$nulls":3},{"$f":"TEXT(DATEVALUE(Март[[#Headers],[Март]]&\" \"&YEAR(TODAY())),\"МММ.\")&\" Итого: нормативные часы\"","v":"мар. Итого: нормативные часы"},{"$f":"SUM(Март[Неделя 1],Март[Неделя 2],Март[Неделя 3],Март[Неделя 4],Март[Неделя 5])","v":{"v":0,"d":"0.0"}},{"$nulls":5},{"$f":"TEXT(DATEVALUE(Март[[#Headers],[Март]]&\" \"&YEAR(TODAY())),\"МММ.\")&\" Итого: сверхурочные часы\"","v":"мар. Итого: сверхурочные часы"},null,{"$f":"SUM(Март[Сверхурочные],Март[[Сверхурочные  ]],Март[[Сверхурочные ]],Март[[Сверхурочные    ]],Март[[Сверхурочные     ]])","v":{"v":0,"d":"0.0"}}]
[" ",{"$nulls":3},"Апрель, май, июнь   |   Табель сотрудника: ежедневный, еженедельный, ежемесячный, ежегодный"]
[" ",{"$nulls":3},"Апрель","Неделя 1","Сверхурочные","Неделя 2","Сверхурочные  ","Неделя 3","Сверхурочные   ","Неделя 4","Сверхурочные    ","Неделя 5","Сверхурочные     "]
[{"$nulls":4},"Понедельник"]
[{"$nulls":4},"Вторник"]
[{"$nulls":4},"Среда"]
[{"$nulls":4},"Четверг"]
[{"$nulls":4},"Пятница"]
[{"$nulls":4},"Суббота"]
[{"$nulls":4},"Воскресенье"]
[{"$nulls":4},"Итого часов за неделю",{"$f":"SUM(F42:F48)","v":{"v":0,"d":"0.0"}},{"v":0,"d":"0.0"},{"v":0,"d":"0.0"},{"v":0,"d":"0.0"},{"v":0,"d":"0.0"},{"v":0,"d":"0.0"},{"v":0,"d":"0.0"},{"v":0,"d":"0.0"},{"v":0,"d":"0.0"},{"v":0,"d":"0.0"}]
[" ",{"$nulls":3},{"$f":"TEXT(DATEVALUE(Апрель[[#Headers],[Апрель]]&\" \"&YEAR(TODAY())),\"МММ.\")&\" Итого: нормативные часы\"","v":"апр. Итого: нормативные часы"},{"$f":"SUM(Апрель[Неделя 1],Апрель[Неделя 2],Апрель[Неделя 3],Апрель[Неделя 4],Апрель[Неделя 5])","v":{"v":0,"d":"0.0"}},{"$nulls":5},{"$f":"TEXT(DATEVALUE(Апрель[[#Headers],[Апрель]]&\" \"&YEAR(TODAY())),\"МММ.\")&\" Итого: сверхурочные часы\"","v":"апр. Итого: сверхурочные часы"},null,{"$f":"SUM(Апрель[Сверхурочные],Апрель[[Сверхурочные  ]],Апрель[[Сверхурочные   ]],Апрель[[Сверхурочные    ]],Апрель[[Сверхурочные     ]])","v":{"v":0,"d":"0.0"}}]
[]
[" ",{"$nulls":3},"Май","Неделя 1","Сверхурочные","Неделя 2","Сверхурочные  ","Неделя 3","Сверхурочные   ","Неделя 4","Сверхурочные    ","Неделя 5","Сверхурочные     "]
[{"$nulls":4},"Понедельник"]
[{"$nulls":4},"Вторник"]
[{"$nulls":4},"Среда"]
[{"$nulls":4},"Четверг"]
[{"$nulls":4},"Пятница"]
[{"$nulls":4},"Суббота"]
[{"$nulls":4},"Воскресенье"]
[{"$nulls":4},"Итого часов за неделю",{"$f":"SUM(F53:F59)","v":{"v":0,"d":"0.0"}},{"v":0,"d":"0.0"},{"v":0,"d":"0.0"},{"v":0,"d":"0.0"},{"v":0,"d":"0.0"},{"v":0,"d":"0.0"},{"v":0,"d":"0.0"},{"v":0,"d":"0.0"},{"v":0,"d":"0.0"},{"v":0,"d":"0.0"}]
[" ",{"$nulls":3},{"$f":"TEXT(DATEVALUE(Май[[#Headers],[Май]]&\" \"&YEAR(TODAY())),\"МММ.\")&\" Итого: нормативные часы\"","v":"май. Итого: нормативные часы"},{"$f":"SUM(Май[Неделя 1],Май[Неделя 2],Май[Неделя 3],Май[Неделя 4],Май[Неделя 5])","v":{"v":0,"d":"0.0"}},{"$nulls":5},{"$f":"TEXT(DATEVALUE(Май[[#Headers],[Май]]&\" \"&YEAR(TODAY())),\"МММ.\")&\" Итого: сверхурочные часы\"","v":"май. Итого: сверхурочные часы"},null,{"$f":"SUM(Май[Сверхурочные],Май[[Сверхурочные  ]],Май[[Сверхурочные   ]],Май[[Сверхурочные    ]],Май[[Сверхурочные     ]])","v":{"v":0,"d":"0.0"}}]
[]
[" ",{"$nulls":3},"Июнь","Неделя 1","Сверхурочные","Неделя 2","Сверхурочные  ","Неделя 3","Сверхурочные   ","Неделя 4","Сверхурочные    ","Неделя 5","Сверхурочные     "]
[{"$nulls":4},"Понедельник"]
[{"$nulls":4},"Вторник"]
[{"$nulls":4},"Среда"]
[{"$nulls":4},"Четверг"]
[{"$nulls":4},"Пятница"]
[{"$nulls":4},"Суббота"]
[{"$nulls":4},"Воскресенье"]
[{"$nulls":4},"Итого часов за неделю",{"$f":"SUM(F64:F70)","v":{"v":0,"d":"0.0"}},{"v":0,"d":"0.0"},{"v":0,"d":"0.0"},{"v":0,"d":"0.0"},{"v":0,"d":"0.0"},{"v":0,"d":"0.0"},{"v":0,"d":"0.0"},{"v":0,"d":"0.0"},{"v":0,"d":"0.0"},{"v":0,"d":"0.0"}]
[" ",{"$nulls":3},{"$f":"TEXT(DATEVALUE(Июнь[[#Headers],[Июнь]]&\" \"&YEAR(TODAY())),\"МММ.\")&\" Итого: нормативные часы\"","v":"июн. Итого: нормативные часы"},{"$f":"SUM(Июнь[Неделя 1],Июнь[Неделя 2],Июнь[Неделя 3],Июнь[Неделя 4],Июнь[Неделя 5])","v":{"v":0,"d":"0.0"}},{"$nulls":5},{"$f":"TEXT(DATEVALUE(Июнь[[#Headers],[Июнь]]&\" \"&YEAR(TODAY())),\"МММ.\")&\" Итого: сверхурочные часы\"","v":"июн. Итого: сверхурочные часы"},null,{"$f":"SUM(Июнь[Сверхурочные],Июнь[[Сверхурочные  ]],Июнь[[Сверхурочные   ]],Июнь[[Сверхурочные    ]],Июнь[[Сверхурочные     ]])","v":{"v":0,"d":"0.0"}}]
[" ",{"$nulls":3},"Июль, август, сентябрь   |   Табель сотрудника: ежедневный, еженедельный, ежемесячный, ежегодный"]
[" ",{"$nulls":3},"Июль","Неделя 1","Сверхурочные","Неделя 2","Сверхурочные ","Неделя 3","Сверхурочные  ","Неделя 4","Сверхурочные   ","Неделя 5","Сверхурочные     "]
[{"$nulls":4},"Понедельник"]
[{"$nulls":4},"Вторник"]
[{"$nulls":4},"Среда"]
[{"$nulls":4},"Четверг"]
[{"$nulls":4},"Пятница"]
[{"$nulls":4},"Суббота"]
[{"$nulls":4},"Воскресенье"]
[{"$nulls":4},"Итого часов за неделю",{"$f":"SUM(F75:F81)","v":{"v":0,"d":"0.0"}},{"v":0,"d":"0.0"},{"v":0,"d":"0.0"},{"v":0,"d":"0.0"},{"v":0,"d":"0.0"},{"v":0,"d":"0.0"},{"v":0,"d":"0.0"},{"v":0,"d":"0.0"},{"v":0,"d":"0.0"},{"v":0,"d":"0.0"}]
[" ",{"$nulls":3},{"$f":"TEXT(DATEVALUE(Июль[[#Headers],[Июль]]&\" \"&YEAR(TODAY())),\"МММ.\")&\" Итого: нормативные часы\"","v":"июл. Итого: нормативные часы"},{"$f":"SUM(Июль[Неделя 1],Июль[Неделя 2],Июль[Неделя 3],Июль[Неделя 4],Июль[Неделя 5])","v":{"v":0,"d":"0.0"}},{"$nulls":5},{"$f":"TEXT(DATEVALUE(Июль[[#Headers],[Июль]]&\" \"&YEAR(TODAY())),\"МММ.\")&\" Итого: сверхурочные часы\"","v":"июл. Итого: сверхурочные часы"},null,{"$f":"SUM(Июль[Сверхурочные],Июль[[Сверхурочные ]],Июль[[Сверхурочные  ]],Июль[[Сверхурочные   ]],Июль[[Сверхурочные     ]])","v":{"v":0,"d":"0.0"}}]
[]
[" ",{"$nulls":3},"Август","Неделя 1","Сверхурочные","Неделя 2","Сверхурочные ","Неделя 3","Сверхурочные   ","Неделя 4","Сверхурочные  ","Неделя 5","Сверхурочные    "]
[{"$nulls":4},"Понедельник"]
[{"$nulls":4},"Вторник"]
[{"$nulls":4},"Среда"]
[{"$nulls":4},"Четверг"]
[{"$nulls":4},"Пятница"]
[{"$nulls":4},"Суббота"]
[{"$nulls":4},"Воскресенье"]
[{"$nulls":4},"Итого часов за неделю",{"$f":"SUBTOTAL(109,Август[Неделя 1])","v":{"v":0,"d":"0.0"}},{"$f":"SUBTOTAL(109,Август[Сверхурочные])","v":{"v":0,"d":"0.0"}},{"$f":"SUBTOTAL(109,Август[Неделя 2])","v":{"v":0,"d":"0.0"}},{"$f":"SUBTOTAL(109,Август[[Сверхурочные ]])","v":{"v":0,"d":"0.0"}},{"$f":"SUBTOTAL(109,Август[Неделя 3])","v":{"v":0,"d":"0.0"}},{"$f":"SUBTOTAL(109,Август[[Сверхурочные   ]])","v":{"v":0,"d":"0.0"}},{"$f":"SUBTOTAL(109,Август[Неделя 4])","v":{"v":0,"d":"0.0"}},{"$f":"SUBTOTAL(109,Август[[Сверхурочные  ]])","v":{"v":0,"d":"0.0"}},{"$f":"SUBTOTAL(109,Август[Неделя 5])","v":{"v":0,"d":"0.0"}},{"$f":"SUBTOTAL(109,Август[[Сверхурочные    ]])","v":{"v":0,"d":"0.0"}}]
[" ",{"$nulls":3},{"$f":"TEXT(DATEVALUE(Август[[#Headers],[Август]]&\" \"&YEAR(TODAY())),\"МММ.\")&\" Итого: нормативные часы\"","v":"авг. Итого: нормативные часы"},{"$f":"SUM(Август[Неделя 1],Август[Неделя 2],Август[Неделя 3],Август[Неделя 4],Август[Неделя 5])","v":{"v":0,"d":"0.0"}},{"$nulls":5},{"$f":"TEXT(DATEVALUE(Август[[#Headers],[Август]]&\" \"&YEAR(TODAY())),\"МММ.\")&\" Итого: сверхурочные часы\"","v":"авг. Итого: сверхурочные часы"},null,{"$f":"SUM(Август[Сверхурочные],Август[[Сверхурочные ]],Август[[Сверхурочные   ]],Август[[Сверхурочные  ]],Август[[Сверхурочные    ]])","v":{"v":0,"d":"0.0"}}]
[]
[" ",{"$nulls":3},"Сентябрь","Неделя 1","Сверхурочные","Неделя 2","Сверхурочные ","Неделя 3","Сверхурочные  ","Неделя 4","Сверхурочные   ","Неделя 5","Сверхурочные    "]
[{"$nulls":4},"Понедельник"]
[{"$nulls":4},"Вторник"]
[{"$nulls":4},"Среда"]
[{"$nulls":4},"Четверг"]
[{"$nulls":4},"Пятница"]
[{"$nulls":4},"Суббота"]
[{"$nulls":4},"Воскресенье"]
[{"$nulls":4},"Итого часов за неделю",{"$f":"SUBTOTAL(109,Сентябрь[Неделя 1])","v":{"v":0,"d":"0.0"}},{"$f":"SUBTOTAL(109,Сентябрь[Сверхурочные])","v":{"v":0,"d":"0.0"}},{"$f":"SUBTOTAL(109,Сентябрь[Неделя 2])","v":{"v":0,"d":"0.0"}},{"$f":"SUBTOTAL(109,Сентябрь[[Сверхурочные ]])","v":{"v":0,"d":"0.0"}},{"$f":"SUBTOTAL(109,Сентябрь[Неделя 3])","v":{"v":0,"d":"0.0"}},{"$f":"SUBTOTAL(109,Сентябрь[[Сверхурочные  ]])","v":{"v":0,"d":"0.0"}},{"$f":"SUBTOTAL(109,Сентябрь[Неделя 4])","v":{"v":0,"d":"0.0"}},{"$f":"SUBTOTAL(109,Сентябрь[[Сверхурочные   ]])","v":{"v":0,"d":"0.0"}},{"$f":"SUBTOTAL(109,Сентябрь[Неделя 5])","v":{"v":0,"d":"0.0"}},{"$f":"SUBTOTAL(109,Сентябрь[[Сверхурочные    ]])","v":{"v":0,"d":"0.0"}}]
[" ",{"$nulls":3},{"$f":"TEXT(DATEVALUE(Сентябрь[[#Headers],[Сентябрь]]&\" \"&YEAR(TODAY())),\"МММ.\")&\" Итого: нормативные часы\"","v":"сен. Итого: нормативные часы"},{"$f":"SUM(Сентябрь[Неделя 1],Сентябрь[Неделя 2],Сентябрь[Неделя 3],Сентябрь[Неделя 4],Сентябрь[Неделя 5])","v":{"v":0,"d":"0.0"}},{"$nulls":5},{"$f":"TEXT(DATEVALUE(Сентябрь[[#Headers],[Сентябрь]]&\" \"&YEAR(TODAY())),\"МММ.\")&\" Итого: сверхурочные часы\"","v":"сен. Итого: сверхурочные часы"},null,{"$f":"SUM(Сентябрь[Сверхурочные],Сентябрь[[Сверхурочные ]],Сентябрь[[Сверхурочные  ]],Сентябрь[[Сверхурочные   ]],Сентябрь[[Сверхурочные    ]])","v":{"v":0,"d":"0.0"}}]
[" ",{"$nulls":3},"Октябрь, ноябрь, декабрь   |   Табель сотрудника: ежедневный, еженедельный, ежемесячный, ежегодный"]
[" ",{"$nulls":3},"Октябрь","Неделя 1","Сверхурочные","Неделя 2","Сверхурочные ","Неделя 3","Сверхурочные  ","Неделя 4","Сверхурочные   ","Неделя 5","Сверхурочные    "]
[{"$nulls":4},"Понедельник"]
[{"$nulls":4},"Вторник"]
[{"$nulls":4},"Среда"]
[{"$nulls":4},"Четверг"]
[{"$nulls":4},"Пятница"]
[{"$nulls":4},"Суббота"]
[{"$nulls":4},"Воскресенье"]
[{"$nulls":4},"Итого часов за неделю",{"$f":"SUBTOTAL(109,Октябрь[Неделя 1])","v":{"v":0,"d":"0.0"}},{"$f":"SUBTOTAL(109,Октябрь[Сверхурочные])","v":{"v":0,"d":"0.0"}},{"$f":"SUBTOTAL(109,Октябрь[Неделя 2])","v":{"v":0,"d":"0.0"}},{"$f":"SUBTOTAL(109,Октябрь[[Сверхурочные ]])","v":{"v":0,"d":"0.0"}},{"$f":"SUBTOTAL(109,Октябрь[Неделя 3])","v":{"v":0,"d":"0.0"}},{"$f":"SUBTOTAL(109,Октябрь[[Сверхурочные  ]])","v":{"v":0,"d":"0.0"}},{"$f":"SUBTOTAL(109,Октябрь[Неделя 4])","v":{"v":0,"d":"0.0"}},{"$f":"SUBTOTAL(109,Октябрь[[Сверхурочные   ]])","v":{"v":0,"d":"0.0"}},{"$f":"SUBTOTAL(109,Октябрь[Неделя 5])","v":{"v":0,"d":"0.0"}},{"$f":"SUBTOTAL(109,Октябрь[[Сверхурочные    ]])","v":{"v":0,"d":"0.0"}}]
[" ",{"$nulls":3},{"$f":"TEXT(DATEVALUE(Октябрь[[#Headers],[Октябрь]]&\" \"&YEAR(TODAY())),\"МММ.\")&\" Итого: нормативные часы\"","v":"окт. Итого: нормативные часы"},{"$f":"SUM(Октябрь[Неделя 1],Октябрь[Неделя 2],Октябрь[Неделя 3],Октябрь[Неделя 4],Октябрь[Неделя 5])","v":{"v":0,"d":"0.0"}},{"$nulls":5},{"$f":"TEXT(DATEVALUE(Октябрь[[#Headers],[Октябрь]]&\" \"&YEAR(TODAY())),\"МММ.\")&\" Итого: сверхурочные часы\"","v":"окт. Итого: сверхурочные часы"},null,{"$f":"SUM(Октябрь[Сверхурочные],Октябрь[[Сверхурочные ]],Октябрь[[Сверхурочные  ]],Октябрь[[Сверхурочные   ]],Октябрь[[Сверхурочные    ]])","v":{"v":0,"d":"0.0"}}]
[]
[" ",{"$nulls":3},"Ноябрь","Неделя 1","Сверхурочные","Неделя 2","Сверхурочные ","Неделя 3","Сверхурочные  ","Неделя 4","Сверхурочные    ","Неделя 5","Сверхурочные     "]
[{"$nulls":4},"Понедельник"]
[{"$nulls":4},"Вторник"]
[{"$nulls":4},"Среда"]
[{"$nulls":4},"Четверг"]
[{"$nulls":4},"Пятница"]
[{"$nulls":4},"Суббота"]
[{"$nulls":4},"Воскресенье"]
[{"$nulls":4},"Итого часов за неделю",{"$f":"SUBTOTAL(109,Ноябрь[Неделя 1])","v":{"v":0,"d":"0.0"}},{"$f":"SUBTOTAL(109,Ноябрь[Сверхурочные])","v":{"v":0,"d":"0.0"}},{"$f":"SUBTOTAL(109,Ноябрь[Неделя 2])","v":{"v":0,"d":"0.0"}},{"$f":"SUBTOTAL(109,Ноябрь[[Сверхурочные ]])","v":{"v":0,"d":"0.0"}},{"$f":"SUBTOTAL(109,Ноябрь[Неделя 3])","v":{"v":0,"d":"0.0"}},{"$f":"SUBTOTAL(109,Ноябрь[[Сверхурочные  ]])","v":{"v":0,"d":"0.0"}},{"$f":"SUBTOTAL(109,Ноябрь[Неделя 4])","v":{"v":0,"d":"0.0"}},{"$f":"SUBTOTAL(109,Ноябрь[[Сверхурочные    ]])","v":{"v":0,"d":"0.0"}},{"$f":"SUBTOTAL(109,Ноябрь[Неделя 5])","v":{"v":0,"d":"0.0"}},{"$f":"SUBTOTAL(109,Ноябрь[[Сверхурочные     ]])","v":{"v":0,"d":"0.0"}}]
[" ",{"$nulls":3},{"$f":"TEXT(DATEVALUE(Ноябрь[[#Headers],[Ноябрь]]&\" \"&YEAR(TODAY())),\"МММ.\")&\" Итого: нормативные часы\"","v":"ноя. Итого: нормативные часы"},{"$f":"SUM(Ноябрь[Неделя 1],Ноябрь[Неделя 2],Ноябрь[Неделя 3],Ноябрь[Неделя 4],Ноябрь[Неделя 5])","v":{"v":0,"d":"0.0"}},{"$nulls":5},{"$f":"TEXT(DATEVALUE(Ноябрь[[#Headers],[Ноябрь]]&\" \"&YEAR(TODAY())),\"МММ.\")&\" Итого: сверхурочные часы\"","v":"ноя. Итого: сверхурочные часы"},null,{"$f":"SUM(Ноябрь[Сверхурочные],Ноябрь[[Сверхурочные ]],Ноябрь[[Сверхурочные  ]],Ноябрь[[Сверхурочные    ]],Ноябрь[[Сверхурочные     ]])","v":{"v":0,"d":"0.0"}}]
[]
[" ",{"$nulls":3},"Декабрь","Неделя 1","Сверхурочные","Неделя 2","Сверхурочные ","Неделя 3","Сверхурочные  ","Неделя 4","Сверхурочные   ","Неделя 5","Сверхурочные    "]
[{"$nulls":4},"Понедельник"]
[{"$nulls":4},"Вторник"]
[{"$nulls":4},"Среда"]
[{"$nulls":4},"Четверг"]
[{"$nulls":4},"Пятница"]
[{"$nulls":4},"Суббота"]
[{"$nulls":4},"Воскресенье"]
[{"$nulls":4},"Итого часов за неделю",{"$f":"SUBTOTAL(109,Декабрь[Неделя 1])","v":{"v":0,"d":"0.0"}},{"$f":"SUBTOTAL(109,Декабрь[Сверхурочные])","v":{"v":0,"d":"0.0"}},{"$f":"SUBTOTAL(109,Декабрь[Неделя 2])","v":{"v":0,"d":"0.0"}},{"$f":"SUBTOTAL(109,Декабрь[[Сверхурочные ]])","v":{"v":0,"d":"0.0"}},{"$f":"SUBTOTAL(109,Декабрь[Неделя 3])","v":{"v":0,"d":"0.0"}},{"$f":"SUBTOTAL(109,Декабрь[[Сверхурочные  ]])","v":{"v":0,"d":"0.0"}},{"$f":"SUBTOTAL(109,Декабрь[Неделя 4])","v":{"v":0,"d":"0.0"}},{"$f":"SUBTOTAL(109,Декабрь[[Сверхурочные   ]])","v":{"v":0,"d":"0.0"}},{"$f":"SUBTOTAL(109,Декабрь[Неделя 5])","v":{"v":0,"d":"0.0"}},{"$f":"SUBTOTAL(109,Декабрь[[Сверхурочные    ]])","v":{"v":0,"d":"0.0"}}]
[" ",{"$nulls":3},{"$f":"TEXT(DATEVALUE(Декабрь[[#Headers],[Декабрь]]&\" \"&YEAR(TODAY())),\"МММ.\")&\" Итого: нормативные часы\"","v":"дек. Итого: нормативные часы"},{"$f":"SUM(Декабрь[Неделя 1],Декабрь[Неделя 2],Декабрь[Неделя 3],Декабрь[Неделя 4],Декабрь[Неделя 5])","v":{"v":0,"d":"0.0"}},{"$nulls":5},{"$f":"TEXT(DATEVALUE(Декабрь[[#Headers],[Декабрь]]&\" \"&YEAR(TODAY())),\"МММ.\")&\" Итого: сверхурочные часы\"","v":"дек. Итого: сверхурочные часы"},null,{"$f":"SUM(L130:L136,N130:N136,P130:P136,R130:R136,T130:T136)","v":{"v":0,"d":"0.0"}}]